lending/lending_fUSD_20250430
["ID","MTS","AMOUNT","RATE_DAILY","PERIOD"]
[359435711,1746017442227,-500.0,0.00035616,7]
[359435712,1746017442236,-500.0,0.00035616,7]
[359435713,1746017442246,-500.0,0.00035616,7]
[359435714,1746017442256,-500.0,0.00035616,7]
[359435715,1746017442269,-500.0,0.00035616,7]
[359435716,1746017442279,-500.0,0.00035616,7]
[359435718,1746017442288,-500.0,0.00035616,7]
[359435719,1746017442298,-500.0,0.00035616,7]
[359435720,1746017442308,-500.0,0.00035616,7]
[359435721,1746017442318,-500.0,0.00035616,7]
[359435723,1746017442327,-497.90649416,0.00035616,7]
[359435724,1746017442337,-500.0,0.00035616,7]
[359435725,1746017442346,-300.0,0.00035616,7]
[359435726,1746017442355,-12500.0,0.00035619,5]
[359435727,1746017442366,-12500.0,0.00035628,5]
[359435728,1746017442377,-151.0,0.00035629,7]
[359435729,1746017442387,-182.484854,0.00035629,7]
[359435730,1746017442396,-2570.442404,0.00035629,7]
[359435731,1746017442405,-152.381021,0.00035629,7]
[359435733,1746017442415,-152.381021,0.00035629,7]
[359435735,1746017442423,-198.738759,0.00035629,7]
[359435737,1746017442433,-151.0,0.00035629,7]
[359435739,1746017442442,-168.539377,0.00035629,7]
[359435741,1746017442451,-198.738759,0.00035629,7]
[359435742,1746017442460,-151.0,0.00035629,7]
[359435743,1746017442470,-183.315507,0.00035629,7]
[359435744,1746017442479,-183.315507,0.00035629,7]
[359435745,1746017442488,-159.820833,0.00035629,7]
[359435746,1746017442498,-151.0,0.00035629,7]
[359435747,1746017442507,-151.0,0.00035629,7]
[359435749,1746017442517,-250.380286,0.00035629,7]
[359435751,1746017442527,-250.380286,0.00035629,7]
[359435752,1746017442536,-938.308467,0.00035629,7]
[359435753,1746017442545,-938.308467,0.00035629,7]
[359435754,1746017442555,-1322.516432,0.00035629,7]
[359435756,1746017442564,-1322.516432,0.00035629,7]
[359435757,1746017442573,-165.697451,0.00035629,7]
[359435758,1746017442583,-151.0,0.00035629,7]
[359435759,1746017442592,-151.0,0.00035629,7]
[359435760,1746017442602,-151.0,0.00035629,7]
[359435761,1746017442612,-151.0,0.00035629,7]
[359435762,1746017442624,-12500.0,0.00035637,5]
[359435763,1746017442633,-12486.97586514,0.00035637,5]
[359435764,1746017442643,-508.25,0.000357,120]
[359435765,1746017442652,-346.27,0.00035899,2]
[359435766,1746017442662,-1601.9,0.00035899,2]
[359435767,1746017442672,-508.25,0.00036,120]
[359435768,1746017442682,-1000.0,0.00036,4]
[359435769,1746017442691,-1050.0,0.00036,3]
[359435770,1746017442701,-1000.0,0.00036,3]
[359435771,1746017442710,-1000.0,0.00036,4]
[359435772,1746017442720,-1000.0,0.00036,4]
[359435773,1746017442729,-1000.0,0.00036,2]
[359435774,1746017442738,-250.0,0.00036121,5]
[359435775,1746017442747,-1258.29,0.00036207,2]
[359435776,1746017442756,-508.25,0.000363,120]
[359435777,1746017442766,-206.0,0.0003637,2]
[359435778,1746017442775,-151.0,0.00036382,2]
[359435779,1746017442785,-1839.38113235,0.00036417,13]
[359435780,1746017442795,-508.25,0.000366,120]
[359435781,1746017442804,-350.0,0.00036668,5]
[359435782,1746017442814,-508.25,0.000369,120]
[359435783,1746017442824,-151.25,0.00036952,2]
[359435784,1746017442834,-724.74,0.00036952,2]
[359435785,1746017442844,-1000.0,0.00037,5]
[359435786,1746017442854,-1000.0,0.00037,4]
[359435787,1746017442864,-277188.01780988,0.00037,10]
[359435788,1746017442875,-199.22,0.00037,2]
[359435789,1746017442885,-152.0,0.00037125,4]
[359435790,1746017442895,-508.25,0.000372,120]
[359435791,1746017442905,-450.0,0.00037216,5]
[359435792,1746017442914,-1839.38113235,0.00037279,13]
[359435793,1746017442925,-206.0,0.0003753,2]
[359435794,1746017442935,-508.25,0.000376,120]
[359435795,1746017442944,-177.87607364,0.00037708,2]
[359435796,1746017442954,-151.0,0.00037751,2]
[359435797,1746017442963,-550.0,0.00037764,5]
[359435798,1746017442972,-338.32,0.00037774,2]
[359435799,1746017442982,-151.0,0.00037782,7]
[359435800,1746017442991,-151.0,0.00037782,7]
[359435801,1746017443001,-151.0,0.00037782,7]
[359435802,1746017443011,-174.338542,0.00037782,7]
[359435803,1746017443020,-153.140194,0.00037782,7]
[359435804,1746017443029,-153.140194,0.00037782,7]
[359435805,1746017443039,-210.296537,0.00037782,7]
[359435806,1746017443048,-210.296537,0.00037782,7]
[359435807,1746017443057,-151.0,0.00037782,7]
[359435808,1746017443066,-151.0,0.00037782,7]
[359435810,1746017443076,-151.0,0.00037782,7]
[359435812,1746017443086,-50936.5238791,0.00037782,2]
[359435813,1746017443095,-3085.0497246,0.00037782,2]
[359435814,1746017443105,-4322.1122285,0.00037782,2]
[359435815,1746017443114,-1923.7037556,0.00037782,2]
[359435816,1746017443125,-3320.8640504,0.00037782,2]
[359435817,1746017443135,-1019.08,0.000378,2]
[359435818,1746017443144,-136783.53255678,0.00037808,2]
[359435819,1746017443154,-156.80754,0.00037808,30]
[359435820,1746017443164,-172.916803,0.00037808,30]
[359435821,1746017443173,-156.80754,0.00037808,30]
[359435822,1746017443182,-156.80754,0.00037808,30]
[359435823,1746017443193,-156.80754,0.00037808,30]
[359435824,1746017443202,-156.80754,0.00037808,30]
[359435825,1746017443212,-156.80754,0.00037808,30]
[359435826,1746017443221,-156.80754,0.00037808,30]
[359435827,1746017443231,-156.80754,0.00037808,30]
[359435828,1746017443240,-156.80754,0.00037808,30]
[359435829,1746017443249,-156.80754,0.00037808,30]
[359435830,1746017443265,-156.80754,0.00037808,30]
[359435831,1746017443275,-156.80754,0.00037808,30]
[359435832,1746017443285,-156.80754,0.00037808,30]
[359435833,1746017443295,-156.80754,0.00037808,30]
[359435834,1746017443306,-166.653509,0.00037808,30]
[359435835,1746017443315,-166.653509,0.00037808,30]
[359435836,1746017443325,-166.653509,0.00037808,30]
[359435837,1746017443340,-212.806953,0.00037808,30]
[359435838,1746017443350,-212.806953,0.00037808,30]
[359435839,1746017443362,-212.806953,0.00037808,30]
[359435840,1746017443374,-212.806953,0.00037808,30]
[359435841,1746017443385,-212.806953,0.00037808,30]
[359435842,1746017443394,-212.806953,0.00037808,30]
[359435843,1746017443403,-212.806953,0.00037808,30]
[359435844,1746017443413,-212.806953,0.00037808,30]
[359435845,1746017443422,-212.806953,0.00037808,30]
[359435846,1746017443432,-212.806953,0.00037808,30]
[359435847,1746017443441,-212.806953,0.00037808,30]
[359435848,1746017443451,-212.806953,0.00037808,30]
[359435849,1746017443460,-212.806953,0.00037808,30]
[359435850,1746017443470,-212.806953,0.00037808,30]
[359435851,1746017443479,-212.806953,0.00037808,30]
[359435852,1746017443489,-212.806953,0.00037808,30]
[359435853,1746017443498,-382.72213697,0.00037808,7]
[359435854,1746017443508,-151.0,0.00037808,7]
[359435855,1746017443517,-151.0,0.00037808,7]
[359435856,1746017443527,-154.578989,0.00037808,7]
[359435857,1746017443536,-169.682031,0.00037808,7]
[359435858,1746017443546,-151.0,0.00037808,7]
[359435859,1746017443555,-151.0,0.00037808,7]
[359435860,1746017443564,-294.673364,0.00037808,7]
[359435861,1746017443574,-151.0,0.00037808,7]
[359435862,1746017443584,-172.364935,0.00037808,7]
[359435863,1746017443594,-151.0,0.00037808,7]
[359435864,1746017443604,-175.442548,0.00037808,7]
[359435865,1746017443614,-470.0,0.00037808,30]
[359435866,1746017443627,-593.44027856,0.00037808,30]
[359435867,1746017443637,-470.0,0.00037808,30]
[359435868,1746017443646,-543.71404768,0.00037808,30]
[359435869,1746017443655,-470.0,0.00037808,30]
[359435870,1746017443665,-470.0,0.00037808,30]
[359435871,1746017443674,-470.0,0.00037808,30]
[359435872,1746017443684,-470.0,0.00037808,30]
[359435873,1746017443694,-470.0,0.00037808,30]
[359435874,1746017443705,-597.96711581,0.00037808,30]
[359435875,1746017443714,-470.0,0.00037808,30]
[359435876,1746017443723,-609.86359834,0.00037808,30]
[359435877,1746017443734,-470.0,0.00037808,30]
[359435878,1746017443743,-470.0,0.00037808,30]
[359435879,1746017443753,-513.73416945,0.00037808,30]
[359435880,1746017443762,-591.68793785,0.00037808,30]
[359435881,1746017443772,-470.0,0.00037808,30]
[359435882,1746017443781,-470.0,0.00037808,30]
[359435883,1746017443792,-470.0,0.00037808,30]
[359435884,1746017443803,-470.0,0.00037808,30]
[359435885,1746017443812,-470.0,0.00037808,30]
[359435886,1746017443822,-470.0,0.00037808,30]
[359435887,1746017443832,-470.0,0.00037808,30]
[359435888,1746017443842,-154.11771574,0.00037808,30]
[359435889,1746017443852,-470.0,0.00037808,30]
[359435890,1746017443862,-470.0,0.00037808,30]
[359435891,1746017443872,-470.0,0.00037808,30]
[359435892,1746017443881,-470.0,0.00037808,30]
[359435893,1746017443891,-312.21355363,0.00037808,30]
[359435894,1746017443900,-567.72186632,0.00037808,30]
[359435895,1746017443910,-500.87436312,0.00037808,30]
[359435896,1746017443919,-500.0,0.00037808,30]
[359435897,1746017443928,-500.0,0.00037808,30]
[359435898,1746017443938,-470.0,0.00037808,30]
[359435899,1746017443948,-500.0,0.00037808,30]
[359435900,1746017443957,-535.63109528,0.00037808,30]
[359435901,1746017443967,-500.0,0.00037808,30]
[359435902,1746017443976,-500.0,0.00037808,30]
[359435903,1746017443985,-533.35620409,0.00037808,30]
[359435904,1746017443996,-500.0,0.00037808,30]
[359435905,1746017444134,-470.0,0.00037808,30]
[359435906,1746017444145,-500.0,0.00037808,30]
[359435907,1746017444155,-544.43597388,0.00037808,30]
[359435908,1746017444165,-500.0,0.00037808,30]
[359435909,1746017444175,-500.0,0.00037808,30]
[359435910,1746017444184,-500.0,0.00037808,30]
[359435911,1746017444194,-351.01717636,0.00037808,30]
[359435912,1746017444204,-470.0,0.00037808,30]
[359435913,1746017444213,-243.66644586,0.00037808,30]
[359435914,1746017444222,-470.0,0.00037808,30]
[359435915,1746017444232,-470.0,0.00037808,30]
[359435916,1746017444242,-593.95584067,0.00037808,30]
[359435917,1746017444253,-470.0,0.00037808,30]
[359435918,1746017444265,-470.0,0.00037808,30]
[359435919,1746017444275,-470.0,0.00037808,30]
[359435920,1746017444284,-470.0,0.00037808,30]
[359435921,1746017444294,-470.0,0.00037808,30]
[359435922,1746017444303,-470.0,0.00037808,30]
[359435923,1746017444312,-470.0,0.00037808,30]
[359435924,1746017444322,-470.0,0.00037808,30]
[359435926,1746017444331,-470.0,0.00037808,30]
[359435927,1746017444341,-470.0,0.00037808,30]
[359435928,1746017444353,-470.0,0.00037808,30]
[359435929,1746017444364,-280.44681983,0.00037808,30]
[359435930,1746017444377,-500.0,0.00037808,30]
[359435931,1746017444387,-470.0,0.00037808,30]
[359435933,1746017444396,-500.0,0.00037808,30]
[359435935,1746017444406,-470.0,0.00037808,30]
[359435937,1746017444415,-500.0,0.00037808,30]
[359435939,1746017444425,-537.29866927,0.00037808,30]
[359435940,1746017444435,-307.77283027,0.00037808,30]
[359435941,1746017444445,-470.0,0.00037808,30]
[359435942,1746017444455,-470.0,0.00037808,30]
[359435943,1746017444465,-509.10579834,0.00037808,30]
[359435944,1746017444475,-470.0,0.00037808,30]
[359435945,1746017444484,-470.0,0.00037808,30]
[359435946,1746017444494,-470.0,0.00037808,30]
[359435947,1746017444505,-470.0,0.00037808,30]
[359435948,1746017444515,-614.8116029,0.00037808,30]
[359435949,1746017444524,-470.0,0.00037808,30]
[359435950,1746017444534,-470.0,0.00037808,30]
[359435951,1746017444545,-470.0,0.00037808,30]
[359435952,1746017444554,-470.0,0.00037808,30]
[359435953,1746017444564,-568.07405741,0.00037808,30]
[359435954,1746017444574,-470.0,0.00037808,30]
[359435955,1746017444584,-507.86475724,0.00037808,30]
[359435956,1746017444593,-470.0,0.00037808,30]
[359435957,1746017444603,-470.0,0.00037808,30]
[359435958,1746017444613,-470.0,0.00037808,30]
[359435959,1746017444624,-429.70792356,0.00037808,30]
[359435960,1746017444634,-470.0,0.00037808,30]
[359435961,1746017444644,-589.50039708,0.00037808,30]
[359435962,1746017444654,-524.11258772,0.00037808,30]
[359435963,1746017444663,-470.0,0.00037808,30]
[359435964,1746017444673,-470.0,0.00037808,30]
[359435965,1746017444683,-470.0,0.00037808,30]
[359435966,1746017444693,-470.0,0.00037808,30]
[359435967,1746017444703,-470.0,0.00037808,30]
[359435968,1746017444713,-470.0,0.00037808,30]
[359435969,1746017444724,-470.0,0.00037808,30]
[359435970,1746017444735,-470.0,0.00037808,30]
[359435971,1746017444745,-480.91013552,0.00037808,30]
[359435972,1746017444755,-470.0,0.00037808,30]
[359435973,1746017444765,-171.29355783,0.00037808,30]
[359435974,1746017444775,-1000.0,0.00037808,30]
[359435975,1746017444784,-1000.0,0.00037808,30]
[359435976,1746017444794,-1000.0,0.00037808,30]
[359435977,1746017444804,-470.0,0.00037808,30]
[359435978,1746017444814,-1000.0,0.00037808,30]
[359435979,1746017444823,-470.0,0.00037808,30]
[359435980,1746017444832,-1000.0,0.00037808,30]
[359435981,1746017444842,-470.0,0.00037808,30]
[359435982,1746017444851,-1019.63356167,0.00037808,30]
[359435983,1746017444860,-470.0,0.00037808,30]
[359435984,1746017444870,-500.0,0.00037808,30]
[359435985,1746017444880,-470.0,0.00037808,30]
[359435986,1746017444890,-502.46834093,0.00037808,30]
[359435987,1746017444899,-470.0,0.00037808,30]
[359435988,1746017444909,-470.0,0.00037808,30]
[359435989,1746017444918,-470.0,0.00037808,30]
[359435990,1746017444928,-470.0,0.00037808,30]
[359435991,1746017444937,-318.81860804,0.00037808,30]
[359435992,1746017444947,-470.0,0.00037808,30]
[359435993,1746017444957,-470.0,0.00037808,30]
[359435994,1746017444967,-470.0,0.00037808,30]
[359435995,1746017444976,-470.0,0.00037808,30]
[359435996,1746017444985,-470.0,0.00037808,30]
[359435997,1746017444997,-551.07426276,0.00037808,30]
[359435998,1746017445006,-470.0,0.00037808,30]
[359435999,1746017445016,-572.21102669,0.00037808,30]
[359436000,1746017445026,-504.27289461,0.00037808,30]
[359436001,1746017445036,-470.0,0.00037808,30]
[359436002,1746017445045,-470.0,0.00037808,30]
[359436003,1746017445055,-235.31220894,0.00037808,30]
[359436004,1746017445064,-531.31441183,0.00037808,30]
[359436005,1746017445073,-151.0,0.00037808,7]
[359436006,1746017445083,-245.846924,0.00037808,7]
[359436007,1746017445092,-542.65368756,0.00037808,30]
[359436008,1746017445101,-470.0,0.00037808,30]
[359436009,1746017445110,-286.49686942,0.00037808,30]
[359436010,1746017445119,-470.0,0.00037808,30]
[359436011,1746017445130,-470.0,0.00037808,30]
[359436012,1746017445139,-470.0,0.00037808,30]
[359436013,1746017445149,-470.0,0.00037808,30]
[359436014,1746017445158,-435.13866739,0.00037808,30]
[359436015,1746017445168,-470.0,0.00037808,30]
[359436016,1746017445178,-470.0,0.00037808,30]
[359436017,1746017445188,-470.0,0.00037808,30]
[359436018,1746017445199,-470.0,0.00037808,30]
[359436019,1746017445210,-514.87178478,0.00037808,30]
[359436020,1746017445219,-583.53060181,0.00037808,30]
[359436021,1746017445228,-573.51356912,0.00037808,30]
[359436022,1746017445240,-470.0,0.00037808,30]
[359436023,1746017445250,-470.0,0.00037808,30]
[359436024,1746017445261,-470.0,0.00037808,30]
[359436025,1746017445274,-507.64482466,0.00037808,30]
[359436026,1746017445284,-470.0,0.00037808,30]
[359436027,1746017445293,-470.0,0.00037808,30]
[359436029,1746017445307,-164.88619985,0.00037808,30]
[359436030,1746017445317,-470.0,0.00037808,30]
[359436031,1746017445328,-566.8542929,0.00037808,30]
[359436032,1746017445339,-470.0,0.00037808,30]
[359436033,1746017445349,-470.0,0.00037808,30]
[359436035,1746017445359,-470.0,0.00037808,30]
[359436037,1746017445369,-470.0,0.00037808,30]
[359436038,1746017445383,-470.0,0.00037808,30]
[359436039,1746017445393,-470.0,0.00037808,30]
[359436040,1746017445403,-470.0,0.00037808,30]
[359436041,1746017445413,-605.17800541,0.00037808,30]
[359436042,1746017445423,-463.24542563,0.00037808,30]
[359436043,1746017445433,-470.0,0.00037808,30]
[359436044,1746017445443,-470.0,0.00037808,30]
[359436045,1746017445454,-349.3193038,0.00037808,30]
[359436046,1746017445463,-470.0,0.00037808,30]
[359436047,1746017445472,-470.0,0.00037808,30]
[359436048,1746017445482,-157.57577601,0.00037808,30]
[359436049,1746017445491,-470.0,0.00037808,30]
[359436050,1746017445502,-470.0,0.00037808,30]
[359436051,1746017445513,-470.0,0.00037808,30]
[359436052,1746017445522,-207.98357313,0.00037808,30]
[359436053,1746017445531,-511.83990601,0.00037808,30]
[359436054,1746017445540,-359.81892,0.00037808,7]
[359436055,1746017445550,-359.81892,0.00037808,7]
[359436056,1746017445559,-470.0,0.00037808,30]
[359436057,1746017445569,-359.81892,0.00037808,7]
[359436058,1746017445578,-470.0,0.00037808,30]
[359436059,1746017445587,-470.0,0.00037808,30]
[359436060,1746017445597,-470.0,0.00037808,30]
[359436061,1746017445606,-359.81892,0.00037808,7]
[359436062,1746017445615,-543.43853209,0.00037808,30]
[359436063,1746017445626,-505.71794473,0.00037808,30]
[359436064,1746017445635,-359.81892,0.00037808,7]
[359436065,1746017445644,-359.81892,0.00037808,7]
[359436066,1746017445654,-470.0,0.00037808,30]
[359436067,1746017445664,-470.0,0.00037808,30]
[359436068,1746017445673,-276.57735352,0.00037808,30]
[359436069,1746017445683,-598.99715413,0.00037808,30]
[359436070,1746017445692,-359.81892,0.00037808,7]
[359436071,1746017445701,-359.81892,0.00037808,7]
[359436072,1746017445710,-359.81892,0.00037808,7]
[359436073,1746017445720,-359.81892,0.00037808,7]
[359436074,1746017445729,-470.0,0.00037808,30]
[359436075,1746017445738,-359.81892,0.00037808,7]
[359436076,1746017445749,-470.0,0.00037808,30]
[359436077,1746017445759,-470.0,0.00037808,30]
[359436078,1746017445768,-470.0,0.00037808,30]
[359436079,1746017445777,-470.0,0.00037808,30]
[359436080,1746017445787,-359.81892,0.00037808,7]
[359436081,1746017445796,-470.0,0.00037808,30]
[359436082,1746017445805,-533.54198646,0.00037808,30]
[359436083,1746017445815,-215.15754269,0.00037808,30]
[359436084,1746017445824,-359.81892,0.00037808,7]
[359436085,1746017445834,-219.3995799,0.00037808,30]
[359436086,1746017445845,-359.81892,0.00037808,7]
[359436087,1746017445855,-503.40939563,0.00037808,30]
[359436088,1746017445864,-359.81892,0.00037808,7]
[359436089,1746017445874,-359.81892,0.00037808,7]
[359436090,1746017445883,-359.81892,0.00037808,7]
[359436092,1746017445893,-511.91258655,0.00037808,30]
[359436094,1746017445902,-359.81892,0.00037808,7]
[359436096,1746017445911,-470.0,0.00037808,30]
[359436097,1746017445920,-470.0,0.00037808,30]
[359436098,1746017445930,-470.0,0.00037808,30]
[359436099,1746017445939,-470.0,0.00037808,30]
[359436100,1746017445948,-151.0,0.00037808,7]
[359436101,1746017445958,-157.698754,0.00037808,7]
[359436103,1746017445967,-470.0,0.00037808,30]
[359436105,1746017445976,-470.0,0.00037808,30]
[359436107,1746017445985,-470.0,0.00037808,30]
[359436108,1746017445994,-470.0,0.00037808,30]
[359436110,1746017446003,-470.0,0.00037808,30]
[359436112,1746017446012,-470.0,0.00037808,30]
[359436113,1746017446022,-470.0,0.00037808,30]
[359436114,1746017446031,-584.95248003,0.00037808,30]
[359436115,1746017446040,-470.0,0.00037808,30]
[359436116,1746017446049,-259.32216321,0.00037808,30]
[359436117,1746017446059,-470.0,0.00037808,30]
[359436118,1746017446069,-470.0,0.00037808,30]
[359436119,1746017446078,-510.11060677,0.00037808,30]
[359436120,1746017446088,-470.0,0.00037808,30]
[359436121,1746017446098,-548.42396065,0.00037808,30]
[359436122,1746017446107,-470.0,0.00037808,30]
[359436123,1746017446116,-470.0,0.00037808,30]
[359436124,1746017446127,-470.0,0.00037808,30]
[359436125,1746017446137,-470.0,0.00037808,30]
[359436126,1746017446147,-470.0,0.00037808,30]
[359436127,1746017446156,-470.0,0.00037808,30]
[359436128,1746017446166,-470.0,0.00037808,30]
[359436129,1746017446175,-400.96965174,0.00037808,30]
[359436130,1746017446185,-470.0,0.00037808,30]
[359436131,1746017446194,-555.1454023,0.00037808,30]
[359436132,1746017446203,-470.0,0.00037808,30]
[359436133,1746017446213,-470.0,0.00037808,30]
[359436134,1746017446223,-470.0,0.00037808,30]
[359436135,1746017446232,-584.4856438,0.00037808,30]
[359436136,1746017446241,-470.0,0.00037808,30]
[359436137,1746017446254,-470.0,0.00037808,30]
[359436138,1746017446264,-470.0,0.00037808,30]
[359436139,1746017446273,-470.0,0.00037808,30]
[359436140,1746017446282,-470.0,0.00037808,30]
[359436141,1746017446292,-470.0,0.00037808,30]
[359436142,1746017446302,-583.67814666,0.00037808,30]
[359436143,1746017446311,-470.0,0.00037808,30]
[359436144,1746017446322,-539.79398924,0.00037808,30]
[359436145,1746017446331,-470.0,0.00037808,30]
[359436146,1746017446341,-568.01314079,0.00037808,30]
[359436147,1746017446350,-470.0,0.00037808,30]
[359436148,1746017446359,-470.0,0.00037808,30]
[359436149,1746017446368,-470.0,0.00037808,30]
[359436150,1746017446380,-470.0,0.00037808,30]
[359436151,1746017446390,-470.0,0.00037808,30]
[359436152,1746017446399,-470.0,0.00037808,30]
[359436153,1746017446409,-470.0,0.00037808,30]
[359436154,1746017446419,-207.41083731,0.00037808,30]
[359436155,1746017446428,-470.0,0.00037808,30]
[359436156,1746017446438,-470.0,0.00037808,30]
[359436157,1746017446448,-593.28002599,0.00037808,30]
[359436158,1746017446457,-470.0,0.00037808,30]
[359436159,1746017446467,-470.0,0.00037808,30]
[359436160,1746017446476,-561.64058164,0.00037808,30]
[359436161,1746017446485,-470.0,0.00037808,30]
[359436162,1746017446495,-470.0,0.00037808,30]
[359436163,1746017446504,-470.0,0.00037808,30]
[359436164,1746017446514,-470.0,0.00037808,30]
[359436165,1746017446523,-470.0,0.00037808,30]
[359436166,1746017446533,-470.0,0.00037808,30]
[359436167,1746017446542,-575.98505651,0.00037808,30]
[359436168,1746017446551,-470.0,0.00037808,30]
[359436169,1746017446561,-470.0,0.00037808,30]
[359436170,1746017446570,-470.0,0.00037808,30]
[359436171,1746017446580,-546.9704318,0.00037808,30]
[359436172,1746017446590,-500.0,0.00037808,30]
[359436173,1746017446600,-553.27365495,0.00037808,30]
[359436174,1746017446610,-470.0,0.00037808,30]
[359436175,1746017446619,-470.0,0.00037808,30]
[359436176,1746017446631,-470.0,0.00037808,30]
[359436177,1746017446640,-470.0,0.00037808,30]
[359436178,1746017446650,-470.0,0.00037808,30]
[359436179,1746017446659,-545.29293626,0.00037808,30]
[359436180,1746017446669,-470.0,0.00037808,30]
[359436181,1746017446680,-470.0,0.00037808,30]
[359436182,1746017446692,-470.0,0.00037808,30]
[359436183,1746017446702,-470.0,0.00037808,30]
[359436184,1746017446712,-470.0,0.00037808,30]
[359436185,1746017446721,-470.0,0.00037808,30]
[359436186,1746017446730,-265.53703079,0.00037808,30]
[359436187,1746017446742,-470.0,0.00037808,30]
[359436188,1746017446753,-470.0,0.00037808,30]
[359436189,1746017446763,-582.65055821,0.00037808,30]
[359436190,1746017446772,-613.92505261,0.00037808,30]
[359436191,1746017446781,-513.65264512,0.00037808,30]
[359436192,1746017446790,-470.0,0.00037808,30]
[359436193,1746017446799,-470.0,0.00037808,30]
[359436194,1746017446809,-575.94756562,0.00037808,30]
[359436195,1746017446818,-470.0,0.00037808,30]
[359436196,1746017446827,-470.0,0.00037808,30]
[359436197,1746017446837,-470.0,0.00037808,30]
[359436198,1746017446846,-470.0,0.00037808,30]
[359436199,1746017446858,-470.0,0.00037808,30]
[359436200,1746017446868,-470.0,0.00037808,30]
[359436201,1746017446879,-470.0,0.00037808,30]
[359436202,1746017446888,-470.0,0.00037808,30]
[359436203,1746017446897,-366.10191173,0.00037808,30]
[359436204,1746017446907,-470.0,0.00037808,30]
[359436205,1746017446916,-470.0,0.00037808,30]
[359436206,1746017446926,-470.0,0.00037808,30]
[359436207,1746017447060,-470.0,0.00037808,30]
[359436208,1746017447070,-246.62387634,0.00037808,30]
[359436209,1746017447079,-470.0,0.00037808,30]
[359436210,1746017447088,-545.01579116,0.00037808,30]
[359436211,1746017447098,-470.0,0.00037808,30]
[359436212,1746017447107,-470.0,0.00037808,30]
[359436213,1746017447116,-470.0,0.00037808,30]
[359436214,1746017447126,-470.0,0.00037808,30]
[359436215,1746017447135,-470.0,0.00037808,30]
[359436216,1746017447145,-470.0,0.00037808,30]
[359436217,1746017447154,-417.49630108,0.00037808,30]
[359436218,1746017447164,-544.54661233,0.00037808,30]
[359436219,1746017447173,-470.0,0.00037808,30]
[359436220,1746017447182,-470.0,0.00037808,30]
[359436221,1746017447192,-470.0,0.00037808,30]
[359436222,1746017447201,-470.0,0.00037808,30]
[359436223,1746017447210,-545.90544465,0.00037808,30]
[359436224,1746017447219,-470.0,0.00037808,30]
[359436225,1746017447229,-470.0,0.00037808,30]
[359436226,1746017447238,-470.0,0.00037808,30]
[359436227,1746017447247,-470.0,0.00037808,30]
[359436228,1746017447260,-470.0,0.00037808,30]
[359436229,1746017447269,-470.0,0.00037808,30]
[359436230,1746017447278,-470.0,0.00037808,30]
[359436231,1746017447288,-470.0,0.00037808,30]
[359436232,1746017447298,-470.0,0.00037808,30]
[359436233,1746017447308,-470.0,0.00037808,30]
[359436234,1746017447318,-205.16799812,0.00037808,30]
[359436235,1746017447327,-173.42806469,0.00037808,30]
[359436236,1746017447338,-470.0,0.00037808,30]
[359436237,1746017447348,-538.76827171,0.00037808,30]
[359436238,1746017447358,-470.0,0.00037808,30]